bitfinex/quotes_ETHUSD_20260302
["timestamp","ask_amount","ask_price","bid_price","bid_amount"]
[1772420221960,7.67713602,1958.4,1957.9,6.39141972]
[1772420222570,7.67713602,1958.4,1957.9,7.66829026]
[1772420222866,0.001,1958.4,1957.9,7.66829026]
[1772420225342,0.001,1958.5,1958.0,6.39141972]
[1772420225653,7.29995237,1958.9,1957.9,1.27687054]
[1772420225654,1.2777498,1959.0,1958.3,6.39141972]
[1772420225958,0.00153886,1959.0,1958.5,6.39141972]
[1772420226737,6.40108269,1959.0,1958.5,6.39141972]
[1772420227425,0.00153886,1959.0,1958.5,6.39141972]
[1772420230058,0.00153886,1959.0,1958.5,7.66790465]
[1772420230544,1.27607837,1959.2,1958.5,7.66790465]
[1772420234246,7.31696165,1959.2,1958.5,6.39141972]
[1772420234660,0.002,1959.1,1958.5,6.39141972]
[1772420234974,6.04088328,1959.0,1958.5,6.39141972]
[1772420236045,6.04088328,1959.0,1958.3,5.96461807]
[1772420236444,7.31710973,1958.9,1958.3,5.96461807]
[1772420237071,9.51310973,1958.9,1958.3,5.96461807]
[1772420237275,5.95490729,1958.8,1958.3,5.96461807]
[1772420238455,5.95490729,1958.8,1958.0,7.56917317]
[1772420238661,1.27635676,1958.7,1958.0,7.56917317]
[1772420238855,7.23126405,1958.7,1958.0,7.56917317]
[1772420239058,1.27635676,1958.7,1958.0,7.56917317]
[1772420239969,7.23126405,1958.7,1958.0,6.29236938]
[1772420241153,7.23126405,1958.7,1958.0,7.56917615]
[1772420241662,7.23126405,1958.7,1958.0,6.29236938]
[1772420242288,5.95490729,1958.6,1958.0,6.29236938]
[1772420245174,7.23139439,1958.5,1958.0,6.29236938]
[1772420246268,5.95490729,1958.4,1958.0,0.00253886]
[1772420247199,1.27661747,1958.3,1958.0,0.00253886]
[1772420247360,7.23152476,1958.3,1958.0,0.00253886]
[1772420248610,7.23152476,1958.3,1958.1,0.001]
[1772420249805,1.27661747,1958.3,1958.1,0.001]
[1772420251067,1.27661747,1958.3,1958.0,6.28983052]
[1772420251577,1.27661747,1958.3,1957.9,0.001]
[1772420252211,1.27661747,1958.3,1957.9,6.29083052]
[1772420252500,5.95490729,1958.2,1957.9,0.001]
[1772420253599,7.23161453,1958.2,1957.9,0.001]
[1772420253766,5.95490729,1958.0,1957.3,1.27724258]
[1772420253970,2.213,1958.1,1957.3,7.5670731]
[1772420255912,1.27681307,1958.0,1957.3,7.5670731]
[1772420257612,2.213,1958.1,1957.3,7.5670731]
[1772420257827,3.48977719,1958.1,1957.3,7.5670731]
[1772420258041,3.48977719,1958.1,1957.4,6.28983052]
[1772420258518,5.95490729,1958.0,1957.2,7.56824472]
[1772420261215,5.95490729,1957.8,1957.2,0.0011]
[1772420261397,5.95490729,1957.6,1957.2,0.0011]
[1772420261598,5.95490729,1957.6,1957.2,7.56825417]
[1772420261828,2.211,1957.7,1957.2,6.29093052]
[1772420262019,8.16590729,1957.7,1957.2,6.29093052]
[1772420262404,1.27687828,1957.9,1957.2,7.56826503]
[1772420262625,9.44378557,1957.9,1957.4,0.0011]
[1772420263336,5.95490729,1957.8,1957.4,0.0011]
[1772420265558,1.27700873,1957.7,1957.4,0.0011]
[1772420266432,1.27700873,1957.7,1957.4,6.29093052]
[1772420267531,1.27700873,1957.7,1957.3,0.0011]
[1772420267735,7.53907733,1957.7,1957.3,0.0011]
[1772420271813,0.001,1958.0,1957.3,0.4769628]
[1772420272342,1.27782957,1958.0,1957.3,0.4769628]
[1772420273116,1.27782957,1958.0,1957.5,0.4758628]
[1772420274436,7.53989817,1958.0,1957.5,0.4758628]
[1772420275219,7.53989817,1958.0,1957.5,1.75293982]
[1772420275438,0.001,1957.9,1957.5,1.75293982]
[1772420276136,0.001,1957.9,1957.6,0.4758628]
[1772420276417,1.27667345,1958.3,1957.6,0.4748628]
[1772420276809,7.53924205,1958.3,1957.6,0.4748628]
[1772420278049,6.2625686,1958.2,1957.6,1.75188393]
[1772420278257,7.53902165,1958.6,1957.7,0.4748628]
[1772420279945,7.53899786,1958.6,1958.0,0.4748628]
[1772420280146,7.53899786,1958.6,1958.1,1.27674786]
[1772420280319,7.53899786,1958.6,1958.0,1.75162515]
[1772420281921,7.53899786,1958.6,1958.0,1.27676235]
[1772420282122,7.53899786,1958.6,1958.1,0.4748628]
[1772420282322,7.5389912,1958.6,1958.2,0.4748628]
[1772420282720,1.2764226,1958.6,1958.2,0.4748628]
[1772420283451,7.5389912,1958.6,1958.0,2.56176189]
[1772420283750,7.5389912,1958.6,1957.7,1.27697515]
[1772420284057,7.5389912,1958.6,1957.7,1.75183795]
[1772420284266,7.5389912,1958.6,1957.7,0.4748628]
[1772420284428,6.2625686,1958.4,1957.4,0.0011]
[1772420284631,2.08689909,1958.5,1957.4,1.27829181]
[1772420284632,6.2625686,1958.2,1957.4,1.27829181]
[1772420285026,6.2625686,1958.2,1957.4,0.0011]
[1772420285544,6.2625686,1958.2,1957.4,1.27829957]
[1772420285745,6.2625686,1958.2,1957.4,0.0011]
[1772420285931,6.2625686,1958.1,1957.4,0.0011]
[1772420287658,6.2625686,1957.9,1957.4,0.0011]
[1772420287827,7.53938167,1958.0,1957.6,0.0011]
[1772420295963,7.53938167,1958.0,1957.6,0.4759628]
[1772420297277,7.53938167,1958.0,1957.6,0.0011]
[1772420301174,7.53938167,1958.0,1957.6,0.4759628]
[1772420301662,7.53938167,1958.0,1957.6,0.0011]
[1772420307478,6.36553726,1957.8,1957.6,0.0011]
[1772420307889,2.256,1957.9,1957.6,0.0011]
[1772420308194,7.64235033,1958.0,1957.6,0.4759628]
[1772420308480,3.53381307,1958.0,1957.6,0.4759628]
[1772420308646,6.36553726,1957.9,1957.6,0.0011]
[1772420310081,7.6424647,1957.9,1957.6,0.0011]
[1772420311161,7.6424647,1957.9,1957.7,0.0011]
[1772420311550,7.6434647,1957.9,1957.7,0.0011]
[1772420313250,8.62953726,1957.8,1957.7,0.0011]
[1772420314986,0.001,1957.9,1957.7,0.4759628]
[1772420319691,0.001,1957.9,1957.7,0.0011]
[1772420320591,6.36653726,1957.9,1957.7,0.0011]
[1772420321293,6.36553726,1957.7,1957.6,0.0011]
[1772420321798,8.63853726,1957.8,1957.6,0.0011]
[1772420323175,7.64261122,1957.6,1957.2,0.4770628]
[1772420324294,7.64261122,1957.6,1957.5,0.001]
[1772420325289,9.92161122,1957.6,1957.5,0.001]
[1772420325967,8.64453726,1957.6,1957.5,0.001]
[1772420326372,6.36553726,1957.6,1957.5,0.001]
[1772420326586,8.64653726,1957.6,1957.5,0.001]
[1772420326998,8.64753726,1957.6,1957.5,0.001]
[1772420327362,7.64261122,1957.6,1957.5,0.001]
[1772420327595,2.282,1957.6,1957.5,0.001]
[1772420328098,2.283,1957.6,1957.5,0.001]
[1772420329480,2.285,1957.6,1957.5,0.001]
[1772420330998,7.69926072,1957.7,1957.5,0.001]
[1772420331200,2.287,1957.6,1957.5,0.001]
[1772420331570,2.288,1957.6,1957.5,0.001]
[1772420331771,3.56692831,1957.9,1957.5,0.4769628]
[1772420332182,9.98913936,1957.9,1957.5,0.4769628]
[1772420334771,9.98913936,1957.9,1957.6,0.4759628]
[1772420334772,0.001,1957.9,1957.6,0.4759628]
[1772420334999,1.27788225,1957.9,1957.6,0.4759628]
[1772420336375,0.001,1957.9,1957.6,0.4759628]
[1772420336702,0.001,1957.8,1957.6,0.4759628]
[1772420341484,8.72221105,1957.8,1957.5,0.001]
[1772420341719,7.04868755,1957.7,1957.3,0.0011]
[1772420342017,6.42221105,1957.4,1956.7,0.0011]
[1772420342197,0.6264765,1957.7,1956.7,0.0011]
[1772420342198,6.42221105,1957.1,1956.7,0.0011]
[1772420342403,6.42221105,1956.9,1956.7,0.0011]
[1772420342779,2.3,1957.0,1956.7,0.00913886]
[1772420343197,8.72221105,1957.0,1956.5,0.4780628]
[1772420343404,7.69979513,1956.9,1956.5,0.4780628]
[1772420344304,3.57750793,1957.0,1956.5,0.4780628]
[1772420345115,9.99971898,1957.0,1956.5,0.4780628]
[1772420347228,6.42221105,1956.9,1956.5,0.4780628]
[1772420347526,9.99971898,1957.0,1956.5,0.4780628]
[1772420347828,6.42221105,1956.9,1956.5,0.4780628]
[1772420348179,6.42221105,1956.9,1956.1,2.54186228]
[1772420348180,6.42221105,1956.9,1956.1,0.4769628]
[1772420348291,6.42221105,1956.6,1956.0,0.00153886]
[1772420348625,6.42221105,1956.1,1956.0,0.00153886]
[1772420350023,1.2780399,1956.2,1956.1,0.0011]
[1772420350226,7.70025095,1956.2,1956.1,0.0011]
[1772420350928,7.70025095,1956.2,1955.8,0.0011]
[1772420351128,7.70025095,1956.2,1955.5,0.0011]
[1772420351129,6.42221105,1956.1,1955.5,0.0011]
[1772420351335,6.42221105,1955.9,1955.5,0.0011]
[1772420352708,7.73947495,1955.8,1955.5,0.0011]
[1772420353047,8.77022565,1955.7,1955.5,0.0011]
[1772420353338,1.2782493,1955.8,1955.5,0.00483886]
[1772420353495,2.31,1955.7,1955.5,0.00483886]
[1772420353895,1.2782332,1955.9,1955.5,0.00483886]
[1772420354128,2.311,1955.8,1955.5,0.00483886]
[1772420354622,11.57377194,1956.0,1955.5,0.00483886]
[1772420354623,7.73934451,1956.0,1955.5,0.00483886]
[1772420354826,1.27436172,1956.1,1955.6,0.4780628]
[1772420355332,7.73558737,1956.1,1955.6,0.4780628]
[1772420357045,7.53891893,1956.3,1955.7,0.4780628]
[1772420357334,2.315,1956.1,1955.6,1.27835586]
[1772420358039,2.315,1956.1,1955.6,1.75641866]
[1772420358546,6.2609686,1956.2,1955.7,0.4780628]
[1772420358734,8.5799686,1956.2,1955.7,0.4780628]
[1772420359344,8.5799686,1956.2,1955.5,0.0011]
[1772420359345,6.2609686,1956.1,1955.5,0.0011]
[1772420359720,3.59702353,1956.2,1955.5,0.4791628]
[1772420361642,3.59702353,1956.2,1955.6,1.75644283]
[1772420362333,3.59702353,1956.2,1955.6,1.75754283]
[1772420362534,0.001,1956.0,1955.6,1.75754283]
[1772420364160,0.001,1956.0,1955.7,0.4780628]
[1772420365931,90.84262565,1956.6,1955.7,0.4770628]
[1772420365932,6.2614686,1956.5,1955.7,0.4770628]
[1772420366137,89.34042076,1956.6,1955.9,0.4770628]
[1772420366648,88.0626911,1956.6,1955.9,0.4770628]
[1772420367651,95.60189091,1956.6,1955.9,0.4770628]
[1772420367832,94.3241597,1956.6,1955.9,0.4770628]
[1772420368540,94.3241597,1956.6,1956.1,0.4770628]
[1772420370439,95.60189216,1956.6,1956.1,0.4770628]
[1772420371980,6.2614686,1956.5,1956.1,0.4770628]
[1772420372189,6.2614686,1956.5,1956.0,1.2781186]
[1772420372880,6.2614686,1956.5,1956.0,1.7551814]
[1772420373687,6.2614686,1956.5,1956.1,0.4770628]
[1772420374387,6.2624686,1956.5,1956.1,1.75506628]
[1772420374577,0.001,1956.5,1956.1,0.4770628]
[1772420376074,6.2624686,1956.5,1956.1,0.4770628]
[1772420376762,0.001,1956.5,1956.1,1.75506167]
[1772420377669,0.001,1956.5,1956.2,0.4770628]
[1772420378057,6.2624686,1956.5,1955.8,0.4770628]
[1772420379102,6.2624686,1956.5,1955.9,1.27818395]
[1772420379402,0.001,1956.5,1956.0,0.4770628]
[1772420380904,6.2624686,1956.5,1956.0,0.4770628]
[1772420381202,0.001,1956.5,1956.0,0.4770628]
[1772420381507,0.001,1956.5,1956.2,0.4770628]
[1772420385303,0.001,1956.5,1956.3,1.7549854]
[1772420385476,0.001,1956.5,1956.3,0.4770628]
[1772420386110,0.001,1956.4,1956.3,0.4770628]
[1772420386487,85.7316911,1956.6,1956.3,0.4760628]
[1772420386686,84.64570431,1956.6,1956.3,0.4760628]
[1772420387180,26.1981458,1956.6,1956.4,0.4760628]
[1772420387506,26.1981458,1956.6,1956.5,1.75385477]
[1772420388209,26.1981458,1956.6,1956.5,0.4760628]
[1772420388577,0.001,1956.9,1956.5,0.4760628]
[1772420388779,0.00153886,1957.0,1956.6,0.4760628]
[1772420389405,0.00153886,1957.0,1956.7,1.27766136]
[1772420389712,0.00153886,1957.0,1956.7,1.75372416]
[1772420390209,2.58253886,1957.0,1956.7,1.75372416]
[1772420391309,2.58253886,1957.0,1956.7,0.4760628]
[1772420391519,8.84450746,1957.0,1956.6,1.27767908]
[1772420391895,8.84450746,1957.0,1956.6,1.75374188]
[1772420392305,6.2619686,1956.9,1956.2,1.75399964]
[1772420392604,6.2619686,1956.9,1956.2,0.4760628]
[1772420393217,6.2619686,1956.9,1956.2,1.75404933]
[1772420393443,6.2619686,1956.9,1956.2,1.27798653]
[1772420393641,6.2619686,1956.7,1956.1,5.11328552]
[1772420393842,6.2619686,1956.5,1956.1,5.11328552]
[1772420394955,6.2619686,1956.5,1956.1,0.0011]
[1772420396840,2.58,1956.4,1956.1,0.4771628]
[1772420397261,2.58,1956.5,1956.1,0.4771628]
[1772420397762,6.2619686,1956.4,1956.1,0.0011]
[1772420398667,6.2619686,1956.4,1956.2,0.0011]
[1772420399470,2.58,1956.5,1956.2,0.0011]
[1772420399471,6.2619686,1956.8,1956.3,0.4760628]
[1772420399636,8.8429686,1956.8,1956.3,0.4760628]
[1772420399964,6.2619686,1956.7,1956.2,0.0011]
[1772420400175,6.2619686,1956.7,1956.2,1.27908793]
[1772420401059,0.001,1956.9,1956.4,0.4760628]
[1772420401280,6.2629686,1956.9,1956.2,1.27908793]
[1772420401879,0.001,1956.9,1956.3,0.4760628]
[1772420402061,0.00153886,1957.0,1956.7,0.4760628]
[1772420402377,0.00153886,1957.0,1956.6,1.27772666]
[1772420402545,6.26350746,1957.0,1956.6,1.27772666]
[1772420402872,6.26350746,1957.0,1956.2,1.27904364]
[1772420402873,6.2619686,1956.9,1956.2,1.27904364]
[1772420403757,6.2619686,1956.9,1956.2,0.0011]
[1772420404086,6.2619686,1956.6,1956.2,0.0011]
[1772420404284,2.579,1956.5,1956.2,0.0011]
[1772420405654,8.8409686,1956.5,1956.2,0.0011]
[1772420406169,10.11877309,1956.5,1956.2,0.0011]
[1772420406478,6.2619686,1956.4,1956.2,0.0011]
[1772420406672,6.2619686,1956.4,1956.1,0.0011]
[1772420407267,6.2619686,1956.4,1955.9,0.0011]
[1772420407465,6.2619686,1956.4,1955.6,0.0011]
[1772420408346,6.2614186,1956.2,1955.6,0.0011]
[1772420408557,6.2614186,1956.0,1955.6,0.0011]
[1772420410678,6.2614186,1956.0,1955.7,0.0011]
[1772420411048,7.53954635,1956.0,1955.7,0.0011]
[1772420411248,6.2614186,1956.0,1955.7,0.0011]
[1772420412990,7.53954629,1956.0,1955.7,0.0011]
[1772420413299,6.2614186,1956.0,1955.7,0.0011]
[1772420413782,7.53953734,1956.0,1955.7,0.0011]
[1772420418073,7.53953734,1956.0,1955.5,0.0011]
[1772420421695,6.2608686,1955.8,1955.5,0.0011]
[1772420421888,2.75,1955.9,1955.5,0.0011]
[1772420421889,6.2608686,1955.6,1955.5,0.0011]
[1772420422921,0.001,1955.9,1955.5,0.4793628]
[1772420423209,2.594,1955.9,1955.6,0.50894704]
[1772420424283,2.594,1955.9,1955.5,1.2795067]
[1772420424489,2.594,1955.9,1955.5,1.78845374]
[1772420427184,2.593,1955.9,1955.6,0.50894704]
[1772420428131,6.24552648,1956.4,1955.6,0.50894704]
[1772420428423,7.52341623,1956.4,1955.7,1.27826201]
[1772420428577,6.24552648,1956.2,1955.7,1.27826201]
[1772420429111,6.24552648,1956.2,1955.7,1.78720905]
[1772420429993,2.593,1956.2,1955.8,0.50894704]
[1772420430512,6.24552648,1956.6,1956.2,0.50894704]
[1772420430681,10.11714855,1956.8,1956.2,0.50894704]
[1772420431009,6.24552648,1956.7,1956.2,0.50894704]
[1772420431208,2.594,1956.8,1956.2,0.50894704]
[1772420431394,2.594,1956.8,1956.0,4.18022368]
[1772420431395,10.07434174,1957.1,1956.5,2.70748465]
[1772420431596,8.79691315,1957.1,1956.5,0.61737281]
[1772420432118,8.79691315,1957.1,1956.0,4.18022368]
[1772420432119,1e-08,1957.1,1956.8,0.61737281]
[1772420432280,1e-08,1957.1,1956.7,2.09011184]
[1772420432480,6.20391315,1957.2,1956.7,1.27766136]
[1772420432908,6.20391315,1957.2,1956.7,1.89503417]
[1772420434214,6.20391315,1957.4,1956.8,0.61737281]
[1772420434412,6.20391315,1957.4,1956.7,3.98514601]
[1772420434622,6.20391315,1957.3,1956.7,1.89503417]
[1772420435295,6.20391315,1957.3,1956.8,0.61737281]
[1772420435692,6.20391315,1957.3,1956.4,1.2778244]
[1772420435891,6.20391315,1957.3,1956.3,1.89524325]
[1772420436093,6.20391315,1957.1,1956.0,0.00153886]
[1772420436300,6.20391315,1956.9,1956.0,0.00153886]
[1772420436615,6.20391315,1956.7,1956.0,0.00153886]
[1772420437387,2.592,1956.6,1956.0,0.00153886]
[1772420437611,2.591,1956.6,1956.0,0.00153886]
[1772420437985,8.79491315,1956.6,1956.0,0.00153886]
[1772420438341,6.19369343,1956.5,1956.0,0.00153886]
[1772420439103,6.20391315,1956.3,1956.0,0.00153886]
[1772420439304,1.27785728,1956.4,1955.6,5.11447256]
[1772420439305,6.20391315,1956.1,1955.6,0.0011]
[1772420439703,6.20391315,1956.1,1955.6,1.27946657]
[1772420439907,6.20391315,1956.1,1955.6,0.0011]
[1772420440218,6.20391315,1956.1,1955.6,1.27947747]
[1772420440417,7.48177043,1956.4,1955.7,0.62759253]
[1772420440917,7.4815785,1956.7,1956.1,2.09011184]
[1772420441215,7.48158314,1956.7,1956.1,1.27805326]
[1772420442018,7.48158314,1956.7,1956.0,1.90566256]
[1772420442409,7.48158314,1956.7,1956.0,1.27807003]
[1772420443608,7.48158314,1956.7,1955.9,7.83029805]
[1772420443818,10.07344734,1956.9,1956.1,2.71770437]
[1772420444114,10.07344734,1956.9,1956.2,0.62759253]
[1772420445850,6.20391315,1956.8,1955.9,5.11259368]
[1772420446029,6.20391315,1956.8,1956.0,1.2781186]
[1772420446524,6.20391315,1956.8,1956.1,0.0011]
[1772420447899,1.27766136,1956.7,1956.1,0.0011]
[1772420448642,7.46386509,1956.7,1956.1,0.0011]
[1772420452927,7.46386509,1956.7,1956.1,0.62869253]
[1772420453128,7.46386509,1956.7,1956.1,0.0011]
[1772420456250,6.18620373,1956.5,1956.1,0.0011]
[1772420456563,6.18620373,1956.5,1955.8,0.0011]
[1772420456747,6.18565373,1956.3,1955.8,0.0011]
[1772420456942,2.598,1956.2,1955.8,0.0011]
[1772420457154,8.78365373,1956.2,1955.8,0.0011]
[1772420457655,6.18565373,1956.2,1955.8,0.0011]
[1772420458754,7.46368483,1956.2,1955.9,0.0011]
[1772420461852,6.18565373,1956.2,1955.9,0.0011]
[1772420462053,3.87596533,1956.3,1955.9,0.0011]
[1772420462362,6.18565373,1956.2,1955.9,0.0011]
[1772420462559,6.18565373,1956.2,1955.5,0.0011]
[1772420462758,6.18565373,1956.0,1955.4,0.0011]
[1772420463057,6.18565373,1955.8,1955.4,0.0011]
[1772420463460,6.18565373,1955.8,1955.0,0.00153886]
[1772420463655,6.18510373,1955.5,1955.0,0.00153886]
[1772420463826,8.78710373,1955.4,1955.0,0.00153886]
[1772420464966,1.27827748,1955.8,1955.0,0.63133139]
[1772420465280,6.18510373,1956.3,1955.5,0.62979253]
[1772420465744,6.18510373,1956.2,1955.6,1.90817256]
[1772420465945,10.0660141,1956.4,1955.7,0.62979253]
[1772420467136,6.18510373,1956.3,1955.7,0.62979253]
[1772420467871,7.46306672,1956.3,1955.8,1.2782493]
[1772420468047,7.46306672,1956.3,1955.7,1.90806639]
[1772420468766,7.46306672,1956.3,1955.7,1.27827386]
[1772420468946,7.46306672,1956.3,1955.5,1.27843862]
[1772420470237,7.46306672,1956.3,1955.4,1.90830332]
[1772420470747,6.18510373,1956.1,1955.4,1.90830332]
[1772420471467,0.001,1956.2,1955.5,0.62979253]
[1772420471769,6.18610373,1956.2,1955.5,0.62979253]
[1772420472261,6.18610373,1956.2,1955.4,1.27851079]
[1772420472262,6.18510373,1956.0,1955.4,1.27851079]
[1772420472463,6.18510373,1955.9,1955.3,1.27852588]
[1772420472665,6.18510373,1955.8,1955.1,0.0011]
[1772420472848,6.18510373,1955.8,1955.1,1.27980461]
[1772420473048,6.18510373,1955.8,1955.2,0.62979253]
[1772420474659,7.59436528,1955.7,1955.2,1.90837162]
[1772420474862,7.59436528,1955.7,1955.2,1.27857909]
[1772420475469,0.001,1956.2,1955.3,0.62979253]
[1772420475658,7.59505474,1956.2,1955.6,0.62979253]
[1772420476166,6.31705062,1956.2,1955.6,0.62979253]
[1772420476558,7.5950387,1956.2,1955.7,1.27831466]
[1772420477369,7.5950387,1956.2,1955.6,1.278333]
[1772420479171,7.5950387,1956.2,1955.5,5.74347328]
[1772420479344,7.5950387,1956.2,1955.6,0.62979253]
[1772420479345,6.31705062,1956.2,1955.6,0.62979253]
[1772420479542,0.001,1956.2,1955.6,0.62979253]
[1772420481369,0.001,1956.2,1955.7,1.90810719]
[1772420482878,6.19603159,1956.2,1955.5,0.62979253]
[1772420483043,6.19503159,1956.0,1955.4,0.0011]
[1772420483248,1.27831466,1955.7,1955.4,0.0011]
[1772420483449,7.47334625,1955.7,1955.4,0.0011]
[1772420484642,7.47334625,1955.7,1955.3,0.0011]
[1772420484846,7.47334625,1955.7,1955.1,0.0011]
[1772420488383,7.47334625,1955.7,1955.0,0.00263886]
[1772420489172,6.19503159,1955.4,1955.0,0.00263886]
[1772420489486,6.19503159,1955.4,1954.8,0.0011]
[1772420489487,6.19503159,1955.0,1954.8,0.0011]
[1772420490060,6.19503159,1955.0,1954.5,0.0011]
[1772420491389,2.605,1954.9,1954.5,0.0011]
[1772420491562,6.19503159,1954.8,1954.5,0.0011]
[1772420491889,6.19503159,1954.8,1954.2,0.0011]
[1772420492562,6.19503159,1954.7,1954.2,0.0011]
[1772420493482,6.19503159,1954.5,1954.2,0.0011]
[1772420493672,6.19503159,1954.4,1954.2,0.0011]
[1772420494475,6.19503159,1954.4,1954.0,0.00263886]
[1772420494657,6.19503159,1954.4,1953.7,1.2807211]
[1772420495063,6.19503159,1954.4,1953.7,0.0011]
[1772420495467,7.47419655,1954.4,1954.3,0.0011]
[1772420495668,10.0809348,1954.8,1953.7,0.63309253]
[1772420495866,6.19503159,1954.7,1953.7,0.63309253]
[1772420497689,6.19503159,1954.5,1953.8,1.27955778]
[1772420497984,6.19503159,1954.5,1953.8,1.91155031]
[1772420498191,6.19503159,1954.5,1953.9,0.63199253]
[1772420498442,3.88702047,1954.7,1953.9,0.63199253]
[1772420498768,6.19503159,1954.6,1953.9,0.63199253]
[1772420499091,7.47391318,1954.9,1954.0,0.63199253]
[1772420499292,2.607,1954.8,1954.0,0.63199253]
[1772420499482,6.19503159,1954.7,1954.0,0.63199253]
[1772420499996,6.19503159,1954.7,1954.1,1.27936134]
[1772420500169,7.47400048,1954.7,1954.1,1.91135387]
[1772420500898,7.47400048,1954.7,1953.9,5.11789413]
[1772420501802,7.47401371,1954.7,1953.9,5.74988666]
[1772420502374,7.47401371,1954.7,1953.9,1.91148482]
[1772420502577,7.47401371,1954.7,1953.8,1.27952116]
[1772420502799,7.47401371,1954.7,1953.7,0.0011]
[1772420503105,6.19503159,1954.5,1953.7,0.0011]
[1772420503263,6.19503159,1954.3,1953.7,0.0011]
[1772420504208,6.19503159,1954.1,1953.7,0.0011]
[1772420505071,6.19503159,1953.9,1953.1,1.27998835]
[1772420505374,6.19503159,1953.9,1953.0,1.28157446]
[1772420506300,6.19503159,1953.7,1953.0,0.00153886]
[1772420506886,7.47458937,1953.8,1953.0,0.63463139]
[1772420507083,7.47458937,1953.8,1953.1,0.0011]
[1772420510693,7.47458937,1953.8,1953.1,0.63419253]
[1772420511217,6.18345373,1953.7,1953.1,0.0011]
[1772420511392,6.18345373,1953.5,1953.1,0.0011]
[1772420511590,6.18345373,1953.5,1952.8,0.0011]
[1772420512317,4.21024722,1953.8,1952.8,0.0011]
[1772420512318,6.18290373,1953.3,1952.8,0.0011]
[1772420512679,6.18290373,1953.1,1952.3,0.63419253]
[1772420512988,6.18290373,1953.1,1952.0,5.75856899]
[1772420513197,6.18290373,1952.9,1952.0,0.00153886]
[1772420513521,6.18290373,1952.7,1952.0,1.28226303]
[1772420513718,6.18290373,1952.9,1952.1,0.63419253]
[1772420513926,2.214,1952.8,1952.1,0.63419253]
[1772420514084,6.18290373,1952.9,1952.1,0.63419253]
[1772420515594,6.18290373,1952.9,1952.2,1.28060649]
[1772420516878,7.46305751,1952.9,1952.2,1.28060649]
[1772420517310,6.18290373,1952.9,1952.2,1.28060649]
[1772420519188,2.608,1953.4,1952.3,2.93068944]
[1772420519392,2.608,1953.4,1952.6,2.93068944]
[1772420519699,2.608,1953.4,1952.3,0.0011]
[1772420519700,6.18290373,1953.3,1952.3,2.93178944]
[1772420519885,6.18290373,1953.1,1952.3,0.0011]
[1772420520308,6.18290373,1953.0,1952.3,0.0011]
[1772420520517,6.18290373,1952.8,1952.3,0.0011]
[1772420520966,6.18290373,1952.8,1952.0,0.00263886]
[1772420521095,6.18290373,1952.8,1951.5,8.05491428]
[1772420521096,6.23304719,1952.4,1951.4,5.12450835]
[1772420521299,6.23304719,1952.2,1951.5,1.28102328]
[1772420521793,6.23304719,1952.2,1951.4,1.28108702]
[1772420522101,2.9322283,1953.0,1951.4,0.53390562]
[1772420522306,2.9322283,1953.0,1951.3,4.70292006]
[1772420522307,6.09453985,1952.3,1951.3,4.70292006]
[1772420522504,6.92253985,1952.3,1951.3,4.70292006]
[1772420522821,6.09453985,1951.7,1951.0,0.00153886]
[1772420523023,2.192,1951.6,1951.0,1.28293141]
[1772420523320,6.09453985,1951.5,1951.0,0.00153886]
[1772420524524,6.09453985,1951.8,1951.0,0.00153886]
[1772420524938,6.09453985,1951.8,1951.0,6.05668025]
[1772420525415,6.09453985,1951.8,1951.0,0.00153886]
[1772420525809,6.09453985,1951.8,1951.0,6.05668025]
[1772420526138,6.09453985,1951.8,1951.1,1.28132848]
[1772420526452,6.09453985,1952.0,1951.1,7.33646987]
[1772420526943,6.09453985,1951.9,1951.1,1.28132848]
[1772420527831,1.28067543,1952.1,1951.2,8.15711518]
[1772420528145,7.37521528,1952.1,1951.3,1.28119715]
[1772420528643,6.59453985,1952.0,1951.3,1.28119715]
[1772420529213,0.5,1952.0,1951.3,7.33633854]
[1772420530445,6.09453985,1951.8,1951.0,1.28290282]
[1772420532017,6.09453985,1951.8,1951.0,7.36245001]
[1772420532562,6.09453985,1951.8,1951.0,1.28290282]
[1772420532563,7.37542805,1951.8,1951.0,1.28290282]
[1772420533047,7.37542805,1951.8,1951.1,0.0011]
[1772420533543,6.09453985,1951.8,1951.1,0.0011]
[1772420533740,10.31478101,1951.9,1951.1,0.0011]
[1772420534041,6.42596424,1951.8,1951.1,0.0011]
[1772420534242,6.42596424,1951.6,1951.1,0.0011]
[1772420534916,2.10197379,1952.4,1952.0,34.77845085]
[1772420535151,6.42596424,1952.0,1951.1,0.0011]
[1772420535448,6.42596424,1951.6,1951.0,0.00263886]
[1772420535613,6.42596424,1951.5,1951.0,0.00263886]
[1772420536239,7.70696444,1951.6,1951.0,0.00263886]
[1772420536910,1.28091223,1951.8,1951.0,0.00263886]
[1772420537110,7.55046239,1951.8,1951.0,0.00263886]
[1772420537514,2.609,1951.9,1951.1,5.92178226]
[1772420537912,7.25332564,1952.1,1951.1,5.92178226]
[1772420538221,2.26444903,1952.1,1951.1,5.92178226]
[1772420538439,2.26444903,1952.1,1951.3,5.92178226]
[1772420538440,2.26446261,1952.1,1951.3,5.92178226]
[1772420539036,8.53401277,1952.1,1951.3,5.92178226]
[1772420539341,7.25332564,1952.1,1951.3,5.92178226]
[1772420539710,0.98377548,1952.1,1951.3,5.92178226]
[1772420540517,0.98377548,1952.1,1951.4,7.20291375]
[1772420541030,2.26444769,1952.1,1951.4,7.20291375]
[1772420541230,0.98377548,1952.1,1951.4,7.20291375]
[1772420541541,2.26445455,1952.1,1951.4,7.20291375]
[1772420541741,0.98377548,1952.1,1951.4,7.20291375]
[1772420542042,9.96903872,1952.5,1951.4,1.28113149]
[1772420542043,10.24037547,1952.5,1951.4,1.28113149]
[1772420542346,10.24037547,1952.5,1951.5,5.92178226]
[1772420542513,10.24037547,1952.5,1951.6,7.20278246]
[1772420543528,6.26955016,1952.4,1951.6,7.20278246]
[1772420544857,7.55009106,1952.3,1951.6,7.20278246]
[1772420545057,6.26955016,1952.3,1951.6,7.20278246]
[1772420546056,8.6788055,1952.5,1951.6,7.20278246]
[1772420546277,0.001,1952.4,1951.6,7.20278246]
[1772420547755,6.26955016,1952.3,1951.5,1.28102394]
[1772420548124,0.001,1952.4,1951.5,7.2028062]
[1772420548560,6.27055016,1952.4,1951.5,7.2028062]
[1772420549828,0.001,1952.4,1951.5,7.2028062]
[1772420551425,1.28148313,1952.4,1951.5,7.2028062]
[1772420552141,0.001,1952.4,1951.5,7.2028062]
[1772420552661,6.27055016,1952.4,1951.5,7.2028062]
[1772420555367,0.001,1952.4,1951.5,7.2028062]
[1772420555564,0.00153886,1953.0,1952.4,5.92178226]
[1772420555864,0.00153886,1953.0,1952.5,5.92178226]
[1772420556161,0.00153886,1953.0,1952.2,2.545]